Cogmind - Beta 13 @@@ ROGUE MODE // 2024.05.24 @ 00:06:21 Player: Beef Result: Destroyed by P-80 Master with Gamma Rifle Performance ------------- Evolutions (9) 4500 Regions Visited (23) 4600 Robots Destroyed (309) 1545 Value Destroyed (11650) 11650 Prototype IDs (33) 660 Alien Tech Used (0) 0 Bonus (2707) 2707 TOTAL SCORE: 25662 Bonus ------- High Alert Combat Kills 484 Follower Combat Kills 1731 Entered DSFs 500 Met Data Miner 300 Met Zhirov 300 Friendly Fire -608 Cogmind --------- Core Integrity 0/1600 Matter 300/300 Energy 240/240 System Corruption 14% Temperature Cool (0) Movement Hovering (76) Location -1/Access Parts ------- > --- POWER (2) -------- Micro Fission Core Light Quantum Reactor > --- PROPULSION (7) --- Biometal Leg Compact Wheel Compact Wheel Improved Antigrav System Improved Antigrav System > --- UTILITY (12) ----- Advanced Terrain Scan Processor Improved Targeting Computer Advanced Target Analyzer Advanced Target Analyzer Advanced Target Analyzer Advanced Target Analyzer Hacking Suite > --- WEAPON (4) ------- Nanosword > --- INVENTORY (5) ---- Combat Linear Gravjet Peak State ------------ > --- POWER ------------ Quantum Reactor Light Quantum Reactor > --- PROPULSION ------- Medium Treads Armored Heavy Treads Advanced Heavy Siege Treads Myomer Leg Compact Wheel > --- UTILITY ---------- Advanced Heat Sink Gravity Neutralizer Improved Targeting Computer Improved Targeting Computer Improved Targeting Computer Improved Targeting Computer Improved Targeting Computer Core Analyzer Layered Heavy Armor Plating Hacking Suite System Shield > --- WEAPON ----------- Gamma Rifle Gamma Rifle Enhanced Quantum Rifle Enhanced Nova Cannon > --- INVENTORY -------- Particle Reactor Particle Reactor Quantum Reactor Improved Arc Projector Enhanced Quantum Rifle [Rating: 145] Favorites ----------- Power Neutrino Core Engine Improved Deuterium Engine Power Core Neutrino Core Reactor Light Antimatter Reactor Propulsion Aerolev Unit Treads Spiked Heavy Treads Leg Myomer Leg Wheel Compact Wheel Hover Unit Aerolev Unit Flight Unit Cooled Nuclear Pulse Thruster Utility Improved Hacking Suite Device Advanced Heat Sink Storage Medium Storage Unit Processor Core Analyzer Hackware Improved Hacking Suite Protection Hardened Light Armor Plating Weapon Heavy Flak Cannon Energy Gun Lightning Gun Energy Cannon Long-range Proton Cannon Ballistic Gun Railgun Ballistic Cannon Heavy Flak Cannon Launcher Heavy Shock Bomb Launcher Special Weapon Plasma Flamer Slashing Weapon Phasing Sabre Piercing Weapon Lance Special Melee Weapon Advanced Datajack Build | -11 -10 -9 -8 -8 -7 -7 -7 -7 -6 -6 -6 -6 -6 -5 -5 -4 -4 -4 -4 -3 -3 -2 -1 ------- Run | Yrd Mat Mat Mat Sto Fac Low Low Dat Pro Fac Ext Cet Arc Fac DSF Fac Upp Upp Zhi Pro Res Res Acc Slots Evolved 18 | . . 2 2 . 2 . . . . 2 . . . 2 . 2 . . . . 2 2 2 Power 1 | . . . . . . . . . . . . . . . . . . . . . 1 . . Propulsion 5 | . . . 2 . . . . . . . . . . 1 . 1 . . . . . . 1 Utility 10 | . . 2 . . 2 . . . . 1 . . . 1 . 1 . . . . 1 2 . Weapon 2 | . . . . . . . . . . 1 . . . . . . . . . . . . 1 Parts Attached 462 | 6 21 18 19 12 7 5 3 . 18 11 48 13 16 3 18 47 19 18 6 3 45 26 80 Power 54 | 1 3 4 3 . 1 . . . 1 . 4 2 1 . 2 4 4 2 2 1 4 3 12 Engine 11 | 1 3 1 . . 1 . . . 1 . 1 . . . . . . . . 1 1 . 1 Core 18 | . . 3 3 . . . . . . . 1 . . . 1 2 2 2 1 . 1 . 2 Reactor 25 | . . . . . . . . . . . 2 2 1 . 1 2 2 . 1 . 2 3 9 Propulsion 148 | 2 7 7 9 3 2 1 . . 7 6 19 1 6 1 5 9 3 3 3 . 17 8 29 Treads 22 | . . 7 1 . . . . . . 1 . . . . . . 3 3 . . 4 3 . Leg 25 | . . . . . . . . . . 1 13 1 2 . . . . . . . 1 3 4 Wheel 27 | 2 1 . . . . . . . 5 3 6 . . . . . . . . . . 2 8 Hover 56 | . 6 . 8 3 2 1 . . 2 1 . . 4 1 4 1 . . . . 10 . 13 Flight 18 | . . . . . . . . . . . . . . . 1 8 . . 3 . 2 . 4 Utility 133 | 1 3 7 3 4 3 4 . . 4 4 13 4 8 1 7 17 5 4 1 2 14 10 14 Device 59 | . 1 1 . 2 3 2 . . 2 3 7 2 2 . 2 6 3 3 1 1 10 2 6 Storage 13 | 1 . 4 1 . . 1 . . . 1 1 . . . . 1 1 . . 1 1 . . Processor 26 | . 2 1 1 . . . . . . . 2 . . . . 3 1 1 . . 1 6 8 Hackware 12 | . . . . . . . . . . . . . 4 1 1 5 . . . . 1 . . Protection 23 | . . 1 1 2 . 1 . . 2 . 3 2 2 . 4 2 . . . . 1 2 . Artifact . | . . . . . . . . . . . . . . . . . . . . . . . . Weapon 127 | 2 8 . 4 5 1 . 3 . 6 1 12 6 1 1 4 17 7 9 . . 10 5 25 Energy Gun 38 | 1 4 . 4 5 . . 1 . 1 . 4 3 . . . 2 . . . . 1 4 8 Energy Cannon 10 | . . . . . . . . . 2 . . . . . . 2 . . . . 4 1 1 Ballistic Gun 36 | 1 3 . . . . . . . 1 . . 2 1 . 4 7 5 6 . . 2 . 4 Ballistic Cannon 17 | . 1 . . . 1 . 1 . 2 1 3 1 . . . 4 . 1 . . 2 . . Launcher 3 | . . . . . . . 1 . . . . . . . . . 1 1 . . . . . Special Weapon 4 | . . . . . . . . . . . . . . . . 1 . 1 . . 1 . 1 Impact Weapon . | . . . . . . . . . . . . . . . . . . . . . . . . Slashing Weapon 16 | . . . . . . . . . . . 5 . . . . . . . . . . . 11 Piercing Weapon 1 | . . . . . . . . . . . . . . . . . 1 . . . . . . Special Melee Weapon 2 | . . . . . . . . . . . . . . 1 . 1 . . . . . . . Unidentified Prototypes 7 | . . . . . . . . . . . . 3 . . . 1 . . 2 . . . 1 Parts Lost 189 | . 3 1 1 3 2 1 . . 10 2 22 2 3 . 5 21 3 8 . 10 23 5 64 Power 20 | . 1 . . . . . . . 1 . 1 . 1 . 1 . 1 1 . 2 2 . 9 Propulsion 73 | . . . 1 1 1 1 . . 6 1 10 . 1 . 1 5 . 3 . 4 12 2 24 Utility 54 | . . 1 . . . . . . 2 1 5 1 1 . 3 10 2 2 . 2 5 3 16 Weapon 42 | . 2 . . 2 1 . . . 1 . 6 1 . . . 6 . 2 . 2 4 . 15 Highest Loss Streak 33 | . 2 1 1 1 2 1 . . 5 1 7 2 3 . 3 17 2 3 . 10 20 1 33 To Critical Strikes 2 | . . . . . . . . . . . 1 . . . . . . . . . . . 1 Average Slot Usage (%) 88 | . 96 96 97 98 99 99 100 100 91 98 96 99 97 86 80 73 74 73 85 96 89 82 68 Engine 1 | . 13 1 . . 4 7 7 7 6 6 1 . . . . . . . . . . . . Core 2 | . . 8 9 9 3 . . . . . 1 . . . 1 2 3 4 4 4 . . . Reactor 1 | . . . . . . . . . . . 2 6 6 5 2 2 1 . . . 7 7 5 Treads 6 | . . 21 13 . . . . . . 2 . . . . . . 14 14 15 13 8 4 4 Leg 3 | . . . . . . . . . . 2 16 26 17 . . . . . . . 1 5 2 Wheel 2 | . 3 . . . . . . . 15 16 8 . . . . . . . . . . 3 3 Hover 8 | . 24 . 20 34 29 29 30 30 7 2 . . 6 23 22 4 . . . . 12 . 2 Flight 1 | . . . . . . . . . . . . . . . . 12 . . 5 14 1 2 2 Device 10 | . 2 7 . 1 15 22 23 23 15 24 22 14 8 . 2 4 11 4 11 12 9 8 5 Storage 4 | . 10 6 9 9 7 7 7 7 7 6 6 6 6 5 5 4 1 3 . 2 . . . Processor 16 | . 12 26 25 18 15 15 15 15 15 13 10 13 11 5 5 4 10 20 21 21 16 24 25 Hackware 6 | . . . . . . . . . . . . . 7 29 18 23 16 11 10 10 13 8 6 Protection 2 | . . . 1 7 7 . . . 6 1 3 11 10 5 3 3 . . . . 3 3 . Energy Gun 5 | . 14 . 17 17 13 7 6 7 4 . 4 10 7 5 5 1 1 . . . 2 9 5 Ballistic Gun 4 | . 12 22 . . . . . . 3 . . 3 11 1 7 1 8 7 5 4 1 . . Ballistic Cannon 3 | . . . . . 1 7 6 7 4 20 11 3 . . . 1 . 2 5 5 . . . Naked Turns . | . . . . . . . . . . . . . . . . . . . . . . . . Heaviest Build 247 | 10 13 92 28 29 36 36 34 33 45 56 75 66 62 55 55 56 247 247 51 51 51 83 88 Greatest Support 225 | 26 26 43 43 32 38 38 38 38 58 42 90 75 75 48 48 57 225 225 84 84 126 180 180 Greatest Overweight (x) 8 | . 1 2 7 1 1 1 . . 2 1 6 . 1 1 2 6 1 1 8 2 3 2 5 Average Overweight (x) . | . . . . . . . . . . 1 . . . . . . . . . . . 1 . Largest Inventory Capacity 35 | 8 8 25 10 10 10 10 10 10 10 15 15 15 15 15 15 15 35 35 5 10 10 5 5 Average Capacity 11 | 6 7 7 10 10 10 10 10 10 10 11 15 15 15 15 15 11 15 26 5 7 5 5 5 Most Carried 24 | 7 8 10 10 10 10 10 10 10 10 15 15 15 15 15 15 15 15 24 5 8 6 5 5 Average Carried 9 | 3 7 6 9 9 9 9 10 10 9 10 14 14 14 14 13 10 8 15 4 5 4 4 3 Final Capacity 35 | 8 5 10 10 10 10 10 10 10 10 15 15 15 15 15 15 5 35 5 5 10 5 5 5 Final Carried 15 | 7 5 10 10 10 10 10 10 10 8 15 15 15 15 15 15 5 15 5 5 5 5 5 1 Class Distribution -------------------- 21% | Scavenger-Mutant 18% | Scavenger-Gunner 13% | Mutant 7% | Scavenger-Tank 6% | Hacker-Gunner 5% | Hacker-Mutant 5% | Hauler-Mutant 4% | Skirmisher 4% | Derelict-Gunner 3% | Hacker-Tank 3% | Hauler-Gunner Dominant Class ---------------- Mutant | -10/Materials Skirmisher | -9/Materials Mutant | -8/Materials Commander-Mutant | -8/Storage Scavenger-Mutant | -7/Factory Scavenger-Mutant | -7/Lower Caves Scavenger-Mutant | -7/Lower Caves Scavenger-Mutant | -7/Data Miner Scavenger-Mutant | -6/Proximity Caves Scavenger-Gunner | -6/Factory Scavenger-Gunner | -6/Extension Scavenger-Tank | -6/Cetus Scavenger-Tank | -6/Archives Wizard-Mutant | -5/Factory Scavenger-Gunner | -5/DSF Hacker-Mutant | -4/Factory Hacker-Tank | -4/Upper Caves Hauler-Gunner | -4/Upper Caves Derelict-Gunner | -4/Zhirov Scavenger-Gunner | -3/Proximity Caves Hacker-Gunner | -3/Research Scavenger-Gunner | -2/Research Scavenger-Mutant | -1/Access Resources | -11 -10 -9 -8 -8 -7 -7 -7 -7 -6 -6 -6 -6 -6 -5 -5 -4 -4 -4 -4 -3 -3 -2 -1 ----------- Run | Yrd Mat Mat Mat Sto Fac Low Low Dat Pro Fac Ext Cet Arc Fac DSF Fac Upp Upp Zhi Pro Res Res Acc Matter Collected 9102 | 259 276 817 191 254 133 295 38 . 425 485 1689 188 489 . 314 323 565 788 . 118 465 288 702 Remotely . | . . . . . . . . . . . . . . . . . . . . . . . . Salvage Created 14972 | 90 494 1128 1397 1066 648 285 59 . 580 239 1048 61 627 . 268 154 474 1205 . 151 693 1226 3079 Parts 711 | 4 29 70 62 60 40 11 1 . 23 24 28 . 36 . 17 11 21 38 . 7 39 41 149 Haulers Intercepted 19 | . 2 3 5 5 1 . . . . . . . . . . . . . . . . 1 2 Recyclers Shooed 8 | . . 3 . . 1 . . . . . 1 . . . . 2 . . . . . 1 . Parts Field Recycled . | . . . . . . . . . . . . . . . . . . . . . . . . Retrieved Matter . | . . . . . . . . . . . . . . . . . . . . . . . . Parts Self-Destructed 94 | . . . . . . 8 1 . 29 . . . . . . . 18 29 . 9 . . . Prevented 6 | . . . . . . . . . . . . . . . . . . 2 . 4 . . . Kills | -11 -10 -9 -8 -8 -7 -7 -7 -7 -6 -6 -6 -6 -6 -5 -5 -4 -4 -4 -4 -3 -3 -2 -1 ------- Run | Yrd Mat Mat Mat Sto Fac Low Low Dat Pro Fac Ext Cet Arc Fac DSF Fac Upp Upp Zhi Pro Res Res Acc Combat Hostiles Destroyed 189 | . 11 15 12 9 5 6 3 . 12 4 19 2 4 . 5 5 7 22 . 3 6 11 28 Melee 12 | . . . . . . . . . . . 3 . . . . . . . . . . . 9 Guns 112 | . 11 15 10 9 2 3 . . 5 . . 2 4 . 5 3 7 17 . . 4 4 11 Cannons 52 | . . . . . 3 3 . . 6 4 16 . . . . 2 . 2 . 3 2 6 5 AOE 6 | . . . . . . . 3 . . . . . . . . . . 2 . . . . 1 Classes Destroyed 21 | 1 4 5 4 . . 2 . . 1 . 1 . . . 2 . . 1 . . . . . Worker 23 | . . 1 3 4 5 . . . . 5 . . . . . . . . . . . . 5 Builder 20 | . . 2 1 4 6 . . . 1 1 2 . . . . . . . . . 1 . 2 Tunneler 3 | . . . 1 1 . . . . . . . . . . . . . . . . 1 . . Hauler 19 | . 2 3 5 5 1 . . . . . . . . . . . . . . . . 1 2 Recycler 19 | 1 . 3 2 . 2 . . . . . 3 . . . . . . . . . 1 1 6 Mechanic 2 | . . 1 . . . . . . . . . . . . . . . 1 . . . . . Operator 16 | . . . 1 1 1 . . . . 1 1 . 9 . . . . . . . 2 . . Watcher 16 | . 1 4 5 2 1 . . . 1 1 . . . . . . . . . . . . 1 Swarmer 29 | . 3 3 . 1 3 . . . . . . . . . . 3 1 11 . . . . 4 Cutter 6 | . . . . . . . . . . . . . . . 3 . . . . . . . 3 Grunt 64 | . 8 6 6 6 2 2 3 . 4 . 10 . . . . . 1 5 . 1 . 6 4 Brawler 5 | . . . 1 . . 1 . . . . 1 . . . . . . 2 . . . . . Duelist 8 | . . 2 . . . . . . 2 . . . . . . . 2 2 . . . . . Protector 2 | . . . . . . . . . 1 . 1 . . . . . . . . . . . . Sentry 32 | . . 4 4 2 . . . . 4 4 2 . 4 . 1 . 1 1 . . 3 1 1 Specialist 3 | . . . . . . . . . . . . . . . 1 . . . . . . 2 . Hunter 13 | . . . 1 . . 2 . . 1 . 1 . . . . . 2 . . . . . 6 Programmer 21 | . . . . . . 1 . . . . 1 . . . . 2 . . . 2 3 2 10 Behemoth 2 | . . . . . . . . . . . 2 . . . . . . . . . . . . Cetus Guard 2 | . . . . . . . . . . . . 2 . . . . . . . . . . . Samaritan 1 | . . . . . . 1 . . . . . . . . . . . . . . . . . Thug 3 | . . . . 1 . . . . . . 2 . . . . . . . . . . . . Mutant 1 | . . . . . . . . . . . . . . . . . . 1 . . . . . Best Kill Streak 14 | 1 4 12 6 6 14 3 3 . 4 4 3 1 2 . 2 2 4 7 . 2 2 5 8 Combat Bots Only 7 | . 4 5 3 3 3 3 3 . 4 1 3 1 2 . 2 2 4 7 . 2 1 4 5 Max Kills in Single Turn 3 | 1 1 1 1 1 2 1 1 . 1 2 2 1 2 . 1 1 1 2 . 1 1 1 3 Gunslinging . | . . . . . . . . . . . . . . . . . . . . . . . . Exploded 2 | . . . . . . . 1 . . . . . . . . . . 2 . . . . 1 Melee 1 | . . . . . . . . . . . 1 . . . . . . . . . . . 1 Uniques/NPCs Destroyed . | . . . . . . . . . . . . . . . . . . . . . . . . Combat | -11 -10 -9 -8 -8 -7 -7 -7 -7 -6 -6 -6 -6 -6 -5 -5 -4 -4 -4 -4 -3 -3 -2 -1 -------- Run | Yrd Mat Mat Mat Sto Fac Low Low Dat Pro Fac Ext Cet Arc Fac DSF Fac Upp Upp Zhi Pro Res Res Acc Hostile Shots Fired 2175 | . 98 52 41 57 16 25 9 . 140 63 236 21 57 . 94 261 86 159 . 63 173 105 419 Missed 673 | . 27 15 7 20 4 10 2 . 60 27 87 10 20 . 31 109 29 21 . 18 46 31 99 Damage Taken 29934 | . 758 553 583 796 192 226 125 . 957 319 2566 318 855 . 1312 3035 1247 2612 . 888 3030 1967 7595 Core 4760 | . 226 79 97 128 31 66 20 . 108 59 154 58 116 . 226 402 97 222 . 155 492 404 1620 Absorbed by Shields 734 | . . . . . . . . . . . 180 . . . . 242 56 169 . 79 8 . . Reduced by Siege Mode 567 | . . . . . . . . . . . . . . . . . . 210 . . . . 357 Ignored by Resistances 93 | . . . . . . . . . . . . . . . . . . . . . . . 93 Regen/Repaired (Parts) 217 | . . 36 . 181 . . . . . . . . . . . . . . . . . . . Core Remaining (%) 60 | 100 9 80 . 59 . . . . 67 . . . 54 . 77 . . . . 23 62 72 . Volleys Fired 783 | 3 65 79 63 64 31 40 5 . 43 15 81 10 45 . 14 36 17 42 . 9 34 35 52 Largest 4 | 1 2 2 2 2 2 2 2 . 2 3 3 3 3 . 3 3 3 3 . 3 3 3 4 Hottest 335 | 40 115 46 110 130 130 123 111 . 160 159 203 197 190 . 148 145 123 192 . 192 243 260 335 Shots Fired 1743 | 3 130 158 126 123 62 64 10 . 85 45 199 29 124 . 38 54 46 113 . 24 83 103 124 Gun 1307 | 3 128 158 126 123 49 24 1 . 53 . 55 20 124 . 38 41 46 93 . 9 44 73 99 Cannon 416 | . 2 . . . 13 40 4 . 32 45 144 9 . . . 13 . 11 . 9 39 30 25 Launcher 11 | . . . . . . . 5 . . . . . . . . . . 6 . . . . . Special 9 | . . . . . . . . . . . . . . . . . . 3 . 6 . . . Kinetic 840 | . 63 158 . . 13 40 4 . 44 45 144 10 78 . 23 32 41 104 . 18 18 . 5 Thermal 540 | 3 67 . . 51 31 24 1 . 41 . 44 19 46 . 15 16 5 3 . 6 27 64 77 Explosive 5 | . . . . . . . 5 . . . . . . . . . . . . . . . . Electromagnetic 358 | . . . 126 72 18 . . . . . 11 . . . . 6 . 6 . . 38 39 42 Robot Hit Streak 23 | 3 8 11 12 15 8 12 10 . 8 8 10 9 7 . 7 10 13 23 . 7 8 12 20 Robot Miss Streak 14 | . 3 6 2 3 1 1 1 . 9 8 14 4 4 . 7 3 5 3 . 3 2 2 3 Penetration Max 1 | . . . . . . . . . 1 . . . 1 . . 1 1 1 . 1 . . . Secondary Targets 17 | . 3 1 2 1 . . . . . . . . . . 1 . 3 4 . . . . 2 Max Gunslinging Chain 1 | . 1 1 1 1 . . . . . . . . . . 1 . 1 1 . . . . 1 Shots Hit Robots 1255 | 3 79 99 86 83 41 36 8 . 66 31 170 23 70 5 13 53 32 86 . 15 53 78 125 Core Hits 705 | 2 27 41 37 39 25 14 5 . 57 46 161 14 29 . 7 8 17 45 . 10 23 28 70 Critical Kills 10 | . 1 1 . . . . . . 1 . . . 4 . . 1 1 . . . . . 1 Critical Parts Destroyed 5 | . . . . . . . . . . . 1 . 3 . . . 1 . . . . . . Critical Strikes 54 | . 2 1 1 2 4 6 . . 1 . 8 2 10 . . 1 3 . . 4 1 . 8 Burn 19 | . 1 . . 2 4 4 . . . . 3 2 1 . . . . . . 2 . . . Meltdown 2 | . . . . . . . . . 1 . . . . . . . . . . . . . 1 Destroy 16 | . 1 1 . . . . . . . . 1 . 9 . . 1 3 . . . . . . Blast 5 | . . . . . . 2 . . . . . . . . . . . . . 2 1 . . Corrupt 2 | . . . 1 . . . . . . . . . . . . . . . . . . . 1 Sever 10 | . . . . . . . . . . . 4 . . . . . . . . . . . 6 Melee Attacks 82 | . . . . . . . . . . . 20 . . 5 . 15 . . . . . . 42 Impact . | . . . . . . . . . . . . . . . . . . . . . . . . Slashing 62 | . . . . . . . . . . . 20 . . . . . . . . . . . 42 Piercing . | . . . . . . . . . . . . . . . . . . . . . . . . Sneak Attacks 24 | . . . . . . . . . . . 1 . . 5 . 12 . . . . . . 6 Combat Hostiles 2 | . . . . . . . . . . . . . . . . 2 . . . . . . . Follow-up Attacks 3 | . . . . . . . . . . . 1 . . . . . . . . . . . 2 Damage Inflicted 33635 | 33 850 1538 1944 1892 985 857 616 . 1561 741 4813 541 1912 . 499 1228 781 2537 . 514 1685 2331 5777 Guns 20184 | 33 818 1538 1853 1804 772 388 . . 911 . 881 298 1912 . 483 803 781 2030 . 197 979 1381 2322 Cannons 8925 | . 32 . . . 213 469 76 . 650 741 3126 243 . . . 425 . 259 . 266 606 950 869 Explosions 1797 | . . . 91 88 . . 540 . . . 114 . . . . . . 236 . . 100 . 628 Melee 2621 | . . . . . . . . . . . 663 . . . . . . . . . . . 1958 Ramming 45 | . . . . . . . . . . . 29 . . . 16 . . . . . . . . Kinetic 13712 | . 363 1538 . . 213 469 76 . 748 741 3126 243 1322 . 221 918 646 2289 . 463 318 . 18 Thermal 11300 | 33 487 . 91 910 499 388 . . 813 . 793 298 590 . 262 181 135 44 . 51 789 1863 3073 Explosive 540 | . . . . . . . 540 . . . . . . . . . . . . . . . . Electromagnetic 5417 | . . . 1853 982 273 . . . . . 202 . . . . 129 . 204 . . 578 468 728 Impact . | . . . . . . . . . . . . . . . . . . . . . . . . Slashing 2621 | . . . . . . . . . . . 663 . . . . . . . . . . . 1958 Piercing . | . . . . . . . . . . . . . . . . . . . . . . . . Highest Corruption 22 | . . . 2 2 . 1 1 1 1 . 22 22 22 . 3 2 . . . 1 22 10 14 Average Corruption 9 | . . . 1 2 . 1 1 1 1 . 19 22 21 . 2 1 . . . 1 14 7 7 Corruption Purged 6 | . . . . . . . . . . . . . 1 . 2 3 . . . . . . . Corruption Blocked . | . . . . . . . . . . . . . . . . . . . . . . . . Effects 167 | . . . 2 7 . 4 2 2 3 . 64 20 32 . 5 1 . . . 2 5 3 15 Message Errors 44 | . . . 1 2 . 1 . 1 1 . 17 4 8 . 1 . . . . 1 1 1 5 Matter Fused 36 | . . . 1 1 . 1 . 1 1 . 17 3 7 . 1 . . . . . . . 3 Heat Flow Errors 19 | . . . . . . 1 . . . . 7 2 4 . 1 . . . . . . 1 3 Energy Discharges 17 | . . . . . . . 1 . . . 7 2 3 . . . . . . 1 2 . 1 Parts Rejected 6 | . . . . . . . . . 1 . 3 . . . 1 . . . . . . . 1 Parts Fused 1 | . . . . . . . . . . . 1 . . . . . . . . . . . . Data Loss (minor) 15 | . . . . 2 . 1 1 . . . 6 1 2 . . . . . . . . . 2 Data Loss (major) 3 | . . . . 1 . . . . . . . 1 . . . . . . . . . 1 . Misfires 9 | . . . . . . . . . . . 2 2 4 . 1 . . . . . . . . Alerts 4 | . . . . . . . . . . . 1 1 1 . . . . . . . 1 . . Misdirections 6 | . . . . . . . . . . . 2 3 . . . . . . . . 1 . . Weapon Failures 7 | . . . . 1 . . . . . . 1 1 3 . . 1 . . . . . . . Overload Shots . | . . . . . . . . . . . . . . . . . . . . . . . . Overflow Damage 871 | . . . . . . 42 60 . . . 111 . . . . 42 . 16 . . 21 88 491 Projectiles 219 | . . . . . . 42 . . . . 2 . . . . 42 . 5 . . 21 88 19 Explosions 167 | . . . . . . . 60 . . . . . . . . . . 11 . . . . 96 Melee 485 | . . . . . . . . . . . 109 . . . . . . . . . . . 376 Knockbacks 90 | . . . . . 2 4 1 . 2 8 57 2 . . . 4 . 4 . 6 . . . Impact 1 | . . . . . . . . . . . 1 . . . . . . . . . . . . Kinetic 80 | . . . . . 2 3 1 . 2 7 50 2 . . . 4 . 4 . 5 . . . Secondary 9 | . . . . . . 1 . . . 1 6 . . . . . . . . 1 . . . Self-Inflicted Damage 168 | . . . . 40 . . . . . . 14 . . . 8 . . 21 . . . . 85 Shots 3 | . . . . 1 . . . . . . . . . . . . . 1 . . . . 1 Rammed 2 | . . . . . . . . . . . 1 . . . 1 . . . . . . . . Targets Rammed 2 | . . . . . . . . . . . 1 . . . 1 . . . . . . . . Kicked . | . . . . . . . . . . . . . . . . . . . . . . . . Crushed . | . . . . . . . . . . . . . . . . . . . . . . . . Highest Temperature 631 | . 267 50 342 446 268 188 22 . 458 194 394 443 302 . 79 190 80 191 . 60 537 631 579 Average Temperature 127 | . 68 8 93 182 84 36 16 . 134 71 123 205 107 . 14 69 28 69 . 22 180 203 197 Received Heat Transfer 3822 | . 345 225 234 297 36 72 81 . 309 66 824 27 126 . 18 123 153 347 . 179 54 153 153 Effects 83 | . . . 1 14 . . . . 3 . 10 . . . . . . . . . 9 21 25 Shutdowns 27 | . . . . 3 . . . . . . 1 . . . . . . . . . 7 7 9 Energy Bleed 11 | . . . . 2 . . . . 2 . 2 . . . . . . . . . 1 3 1 Interference 25 | . . . 1 7 . . . . . . 7 . . . . . . . . . . 6 4 Matter Decay 4 | . . . . 2 . . . . . . . . . . . . . . . . 1 . 1 Short Circuit 2 | . . . . . . . . . . . . . . . . . . . . . . . 2 Damage (minor) 5 | . . . . . . . . . 1 . . . . . . . . . . . . 3 1 Damage (major) 8 | . . . . . . . . . . . . . . . . . . . . . . 1 7 Damage (core) 1 | . . . . . . . . . . . . . . . . . . . . . . 1 . Siege Activations 5 | . . . . . . . . . . . . . . . . . . 2 . . . . 3 Total Turns 155 | . . . . . . . . . . . . . . . . . . 84 . . . . 71 Longest Duration 44 | . . . . . . . . . . . . . . . . . . 44 . . . . 31 Robots Corrupted 7 | . . . 4 . . . . . . . . . . . . . . 1 . . 1 . 1 Combat Hostiles 4 | . . . 2 . . . . . . . . . . . . . . 1 . . . . 1 Parts Fried 33 | . . . 17 . . . . . . . . . . . . . . 2 . . 9 1 4 Impact Corruptions 1 | . . . . . . 1 . . . . . . . . . . . . . . . . . Robots Melted 3 | . . . . . . . . . 1 . . . . . . . . . . . . 1 1 Combat Hostiles 3 | . . . . . . . . . 1 . . . . . . . . . . . . 1 1 Parts Melted 31 | . 1 . . 2 4 1 . . 2 . 2 1 1 . . . . . . . 1 5 11 Heat Transferred 16600 | 75 1206 . . 1682 1184 962 . . 1723 . 1402 703 925 . 296 259 185 130 . 560 753 1813 2742 Parts Sabotaged . | . . . . . . . . . . . . . . . . . . . . . . . . Parts Stolen . | . . . . . . . . . . . . . . . . . . . . . . . . Parts Stripped . | . . . . . . . . . . . . . . . . . . . . . . . . Power Chain Reactions 8 | . . . 2 1 . . . . . . 1 . . . . . . 1 . . 1 . 2 Alert | -11 -10 -9 -8 -8 -7 -7 -7 -7 -6 -6 -6 -6 -6 -5 -5 -4 -4 -4 -4 -3 -3 -2 -1 ------- Run | Yrd Mat Mat Mat Sto Fac Low Low Dat Pro Fac Ext Cet Arc Fac DSF Fac Upp Upp Zhi Pro Res Res Acc Peak Influence 1146 | 5 292 352 478 1146 658 . . . . 255 893 500 395 78 154 368 . . . . 152 241 414 Initial 500 | . 3 107 136 143 428 . . . . 65 46 500 180 78 54 75 . . . . . . 144 Average 285 | 3 159 239 338 621 540 . . . . 113 550 454 292 78 112 104 . . . . 66 53 167 Maximum Alert Level 4 | . 1 1 2 4 2 . . . . 1 3 2 1 . . 1 . . . . . 1 2 Low Security (%) 45 | 100 71 21 11 3 . . . . . 87 9 . 10 100 100 89 . . . . 100 91 72 Level 1 26 | . 28 78 53 23 . . . . . 12 11 . 89 . . 10 . . . . . 8 24 Level 2 21 | . . . 34 40 100 . . . . . 57 100 . . . . . . . . . . 2 Level 3 5 | . . . . 29 . . . . . . 21 . . . . . . . . . . . . Level 4 . | . . . . 2 . . . . . . . . . . . . . . . . . . . Level 5 . | . . . . . . . . . . . . . . . . . . . . . . . . High Security . | . . . . . . . . . . . . . . . . . . . . . . . . Max Security . | . . . . . . . . . . . . . . . . . . . . . . . . Squads Dispatched 33 | . 1 . 1 7 . . . . . 1 4 . . . 1 7 . 1 . . 3 4 3 Investigation 11 | . . . 1 3 . . . . . . 3 . . . . 3 . . . . 1 . . Extermination 5 | . . . . . . . . . . . . . . . . 1 . . . . 1 1 2 Reinforcement 11 | . 1 . . 1 . . . . . 1 . . . . 1 3 . . . . . 3 1 Assault 5 | . . . . 3 . . . . . . 1 . . . . . . 1 . . . . . Garrison 1 | . . . . . . . . . . . . . . . . . . . . . 1 . . Intercept . | . . . . . . . . . . . . . . . . . . . . . . . . Searches Triggered . | . . . . . . . . . . . . . . . . . . . . . . . . Construction Impeded . | . . . . . . . . . . . . . . . . . . . . . . . . Haulers Reinforced . | . . . . . . . . . . . . . . . . . . . . . . . . Active Scanning Responses . | . . . . . . . . . . . . . . . . . . . . . . . . Cargo Convoy Interrupts . | . . . . . . . . . . . . . . . . . . . . . . . . Stealth | -11 -10 -9 -8 -8 -7 -7 -7 -7 -6 -6 -6 -6 -6 -5 -5 -4 -4 -4 -4 -3 -3 -2 -1 --------- Run | Yrd Mat Mat Mat Sto Fac Low Low Dat Pro Fac Ext Cet Arc Fac DSF Fac Upp Upp Zhi Pro Res Res Acc Distress Signals 20 | . 2 . 2 1 . . . . 1 . 3 2 . . . 2 . . . . 1 1 5 Communications Jammed . | . . . . . . . . . . . . . . . . . . . . . . . . Distress Signals . | . . . . . . . . . . . . . . . . . . . . . . . . Times Spotted 464 | . 26 25 22 52 16 7 3 . 21 7 73 7 17 . 12 53 7 26 . 7 14 21 48 Peak Tracking Total 19 | . 5 4 5 19 7 3 3 . 4 1 7 5 2 . 6 15 5 8 . 5 4 6 7 Tactical Retreats 41 | . 3 1 . 2 . . . . . . 18 . . . . 10 1 1 . . . 3 2 Traps | -11 -10 -9 -8 -8 -7 -7 -7 -7 -6 -6 -6 -6 -6 -5 -5 -4 -4 -4 -4 -3 -3 -2 -1 ------- Run | Yrd Mat Mat Mat Sto Fac Low Low Dat Pro Fac Ext Cet Arc Fac DSF Fac Upp Upp Zhi Pro Res Res Acc Traps Triggered 12 | . . . 6 . . . . . . 1 2 . . . . 2 . . . . . . 1 Indirectly . | . . . . . . . . . . . . . . . . . . . . . . . . Trap Hack Attempts . | . . . . . . . . . . . . . . . . . . . . . . . . Triggered . | . . . . . . . . . . . . . . . . . . . . . . . . Disarmed . | . . . . . . . . . . . . . . . . . . . . . . . . Reprogrammed . | . . . . . . . . . . . . . . . . . . . . . . . . Reused . | . . . . . . . . . . . . . . . . . . . . . . . . Traps Extracted . | . . . . . . . . . . . . . . . . . . . . . . . . Installed . | . . . . . . . . . . . . . . . . . . . . . . . . Triggered 1 | . . . . . . . . . . . . . . . . . . . . 1 . . . Machines | -11 -10 -9 -8 -8 -7 -7 -7 -7 -6 -6 -6 -6 -6 -5 -5 -4 -4 -4 -4 -3 -3 -2 -1 ---------- Run | Yrd Mat Mat Mat Sto Fac Low Low Dat Pro Fac Ext Cet Arc Fac DSF Fac Upp Upp Zhi Pro Res Res Acc Machines Disabled 13 | . . . . 2 1 . . . . . 3 . 5 . 2 . . . . . . . . Max in Single Turn 1 | . . . . 1 1 . . . . . . . 1 . 1 . . . . . . . . Machines Repaired . | . . . . . . . . . . . . . . . . . . . . . . . . Machines Dismantled . | . . . . . . . . . . . . . . . . . . . . . . . . Machines Sabotaged . | . . . . . . . . . . . . . . . . . . . . . . . . Overloaded Fab Kills . | . . . . . . . . . . . . . . . . . . . . . . . . Hacking | -11 -10 -9 -8 -8 -7 -7 -7 -7 -6 -6 -6 -6 -6 -5 -5 -4 -4 -4 -4 -3 -3 -2 -1 --------- Run | Yrd Mat Mat Mat Sto Fac Low Low Dat Pro Fac Ext Cet Arc Fac DSF Fac Upp Upp Zhi Pro Res Res Acc Machines Accessed 78 | . 5 5 5 9 2 1 . 4 3 3 4 3 1 1 . 12 2 . 9 . 7 . 2 Terminals 42 | . 5 4 4 4 1 1 . . 1 2 4 3 . 1 . 5 1 . . . 6 . . Fabricators 6 | . . . . . . . . . 1 . . . . . . 4 . . . . . . 1 Repair Stations 4 | . . 1 1 2 . . . . . . . . . . . . . . . . . . . Recycling Units 8 | . . . . 2 1 . . . 1 . . . . . . 2 . . . . 1 . 1 Scanalyzers 2 | . . . . . . . . . . 1 . . . . . 1 . . . . . . . Garrison Access 1 | . . . . 1 . . . . . . . . . . . . . . . . . . . Total Hacks 302 | . 19 10 17 23 2 2 . 29 7 7 11 7 25 1 . 66 2 . 48 . 21 . 5 Successful 217 | . 9 6 7 14 2 2 . 29 2 2 4 1 25 1 . 47 2 . 48 . 14 . 2 Failed 85 | . 10 4 10 9 . . . . 5 5 7 6 . . . 19 . . . . 7 . 3 Catastrophic 9 | . . 1 2 1 . . . . 1 1 1 1 . . . . . . . . . . 1 Database Lockouts . | . . . . . . . . . . . . . . . . . . . . . . . . Manual 9 | . . . . . . . . . . . 1 1 . . . 6 . . . . 1 . . Terminals 145 | . 19 8 13 9 1 2 . . 1 6 11 7 . 1 . 48 1 . . . 18 . . Fabricators 15 | . . . . . . . . . 3 . . . . . . 10 . . . . . . 2 Repair Stations 12 | . . 2 4 6 . . . . . . . . . . . . . . . . . . . Recycling Units 18 | . . . . 4 1 . . . 3 . . . . . . 4 . . . . 3 . 3 Scanalyzers 5 | . . . . . . . . . . 1 . . . . . 4 . . . . . . . Garrison Access 4 | . . . . 4 . . . . . . . . . . . . . . . . . . . Terminal Hacks 186 | . 9 4 6 3 1 2 . 29 1 2 4 1 25 1 . 34 2 . 48 . 14 . . Record 97 | . . . . . 1 2 . 11 . 2 4 1 25 . . 9 1 . 36 . 5 . . Part Schematic 14 | . . . . . . . . 10 . . . . . . . . . . 4 . . . . Robot Schematic 5 | . . . . . . . . 5 . . . . . . . . . . . . . . . Robot Analysis 6 | . 1 . . . . . . . . . . . . . . 1 . . 4 . . . . Prototype ID Bank 11 | . . 1 2 . . . . 3 . . . . . . . 1 . . 4 . . . . Open Door 2 | . . . . . . . . . 1 . . . . . . . 1 . . . . . . Open DSF 5 | . . . . . . . . . . . . . . 1 . 2 . . . . 2 . . Level Access Points 1 | . . . . . . . . . . . . . . . . . . . . . 1 . . Branch Access Points 3 | . . . 1 1 . . . . . . . . . . . 1 . . . . . . . Emergency Access Points 5 | . 2 . . . . . . . . . . . . . . 1 . . . . 2 . . Scanalyzer Index 1 | . 1 . . . . . . . . . . . . . . . . . . . . . . Alert Level 8 | . 1 . 1 1 . . . . . . . . . . . 3 . . . . 2 . . Unreport Threat 1 | . . . . . . . . . . . . . . . . 1 . . . . . . . Locate Traps 3 | . 1 . . 1 . . . . . . . . . . . 1 . . . . . . . Dispatch Records 2 | . . 1 . . . . . . . . . . . . . 1 . . . . . . . Maintenance Status 2 | . 1 . . . . . . . . . . . . . . 1 . . . . . . . Investigation Status 4 | . . . . . . . . . . . . . . . . 4 . . . . . . . Extermination Status 1 | . . . . . . . . . . . . . . . . 1 . . . . . . . Reinforcement Status 1 | . . . . . . . . . . . . . . . . 1 . . . . . . . Recall Investigation 3 | . . . . . . . . . . . . . . . . 3 . . . . . . . Recall Reinforcements 1 | . . . . . . . . . . . . . . . . 1 . . . . . . . Hauler Manifests 4 | . 2 1 1 . . . . . . . . . . . . . . . . . . . . Registered Prototypes 1 | . . . . . . . . . . . . . . . . 1 . . . . . . . Zone Layout 5 | . . 1 1 . . . . . . . . . . . . 1 . . . . 2 . . Fabricator Hacks 7 | . . . . . . . . . . . . . . . . 6 . . . . . . 1 Network Status 2 | . . . . . . . . . . . . . . . . 2 . . . . . . . Load Schematic 3 | . . . . . . . . . . . . . . . . 2 . . . . . . 1 Build 2 | . . . . . . . . . . . . . . . . 2 . . . . . . . Repair Station Hacks 9 | . . 2 1 6 . . . . . . . . . . . . . . . . . . . Scan Component 5 | . . 1 1 3 . . . . . . . . . . . . . . . . . . . Repair 4 | . . 1 . 3 . . . . . . . . . . . . . . . . . . . Recycling Unit Hacks 9 | . . . . 3 1 . . . 1 . . . . . . 3 . . . . . . 1 Process 1 | . . . . 1 . . . . . . . . . . . . . . . . . . . Report Inventory 5 | . . . . 2 1 . . . 1 . . . . . . 1 . . . . . . . Retrieve Components 3 | . . . . . . . . . . . . . . . . 2 . . . . . . 1 Scanalyzer 4 | . . . . . . . . . . . . . . . . 4 . . . . . . . Insert Component 2 | . . . . . . . . . . . . . . . . 2 . . . . . . . Analyze 2 | . . . . . . . . . . . . . . . . 2 . . . . . . . Garrison Access Hacks 2 | . . . . 2 . . . . . . . . . . . . . . . . . . . Unlock Access 1 | . . . . 1 . . . . . . . . . . . . . . . . . . . Coupler Status 1 | . . . . 1 . . . . . . . . . . . . . . . . . . . Unauthorized Hacks . | . . . . . . . . . . . . . . . . . . . . . . . . Terminals . | . . . . . . . . . . . . . . . . . . . . . . . . Fabricators . | . . . . . . . . . . . . . . . . . . . . . . . . Repair Stations . | . . . . . . . . . . . . . . . . . . . . . . . . Recycling Units . | . . . . . . . . . . . . . . . . . . . . . . . . Scanalyzers . | . . . . . . . . . . . . . . . . . . . . . . . . Garrison Access . | . . . . . . . . . . . . . . . . . . . . . . . . Data Cores Recovered 3 | . . . 1 . . . . . . . . . . . . . . . . . 2 . . Used 2 | . . . 1 . . . . . . . . . . . . . . . . . 1 . . Hacking Detections 52 | . 5 4 4 8 1 . . . 2 3 4 3 . . . 9 . . . . 7 . 2 Full Trace Events 10 | . . . 1 3 . . . . . . 3 . . . . 2 . . . . 1 . . Feedback Events 1 | . . . . . . . . . . . 1 . . . . . . . . . . . . Corruption 1 | . . . . . . . . . . . 1 . . . . . . . . . . . . Feedback Blocked . | . . . . . . . . . . . . . . . . . . . . . . . . Robot Schematics Acquired 5 | . . . . . . . . 5 . . . . . . . . . . . . . . . Robots Built . | . . . . . . . . . . . . . . . . . . . . . . . . Authchips . | . . . . . . . . . . . . . . . . . . . . . . . . Time . | . . . . . . . . . . . . . . . . . . . . . . . . Total Robot Build Rating . | . . . . . . . . . . . . . . . . . . . . . . . . Part Schematics Acquired 16 | . . . . . . . . 10 . . . . . . . 2 . . 4 . . . . Parts Built 1 | . . . . . . . . . . . . . . . . 1 . . . . . . . Authchips . | . . . . . . . . . . . . . . . . . . . . . . . . Time 202 | . . . . . . . . . . . . . . . . 202 . . . . . . . Total Part Build Rating 5 | . . . . . . . . . . . . . . . . 5 . . . . . . . Parts Repaired 4 | . . 1 . 3 . . . . . . . . . . . . . . . . . . . Time 202 | . . 38 . 164 . . . . . . . . . . . . . . . . . . . Parts Recycled . | . . . . . . . . . . . . . . . . . . . . . . . . Recycled Matter 11 | . . . . 11 . . . . . . . . . . . . . . . . . . . Retrieved Matter . | . . . . . . . . . . . . . . . . . . . . . . . . Retrieved Components 23 | . . . . . . . . . . . . . . . . 13 . . . . . . 10 Parts Scanalyzed 2 | . . . . . . . . . . . . . . . . 2 . . . . . . . Part Schematics Acquired 2 | . . . . . . . . . . . . . . . . 2 . . . . . . . Parts Damaged . | . . . . . . . . . . . . . . . . . . . . . . . . Bothacking | -11 -10 -9 -8 -8 -7 -7 -7 -7 -6 -6 -6 -6 -6 -5 -5 -4 -4 -4 -4 -3 -3 -2 -1 ------------ Run | Yrd Mat Mat Mat Sto Fac Low Low Dat Pro Fac Ext Cet Arc Fac DSF Fac Upp Upp Zhi Pro Res Res Acc Used RIF Installer . | . . . . . . . . . . . . . . . . . . . . . . . . Robots Hacked 12 | . . . . . . . . . . . . . . 2 . 10 . . . . . . . Non-combat 12 | . . . . . . . . . . . . . . 2 . 10 . . . . . . . Combat . | . . . . . . . . . . . . . . . . . . . . . . . . Robot Hacks Applied 17 | . . . . . . . . . . . . . . 5 . 12 . . . . . . . parse_system 1 | . . . . . . . . . . . . . . . . 1 . . . . . . . no_distress 5 | . . . . . . . . . . . . . . 2 . 3 . . . . . . . find_chute 5 | . . . . . . . . . . . . . . 1 . 4 . . . . . . . find_fabricator 3 | . . . . . . . . . . . . . . 1 . 2 . . . . . . . find_dsf 2 | . . . . . . . . . . . . . . 1 . 1 . . . . . . . find_recycling 1 | . . . . . . . . . . . . . . . . 1 . . . . . . . Relay Couplers Released 3 | . . . . . . . . . . . . . . . . . . . . . . . 3 Programmers 3 | . . . . . . . . . . . . . . . . . . . . . . . 3 Fabnet Peak Effective % . | . . . . . . . . . . . . . . . . . . . . . . . . Robots Rewired 3 | . . . . . . . . . . . . . . . . 2 . . . . . 1 . Allies Hacked . | . . . . . . . . . . . . . . . . . . . . . . . . Hacks Repelled 1 | . . . . . . . . . . . . . . . . 1 . . . . . . . Allies | -11 -10 -9 -8 -8 -7 -7 -7 -7 -6 -6 -6 -6 -6 -5 -5 -4 -4 -4 -4 -3 -3 -2 -1 -------- Run | Yrd Mat Mat Mat Sto Fac Low Low Dat Pro Fac Ext Cet Arc Fac DSF Fac Upp Upp Zhi Pro Res Res Acc Total Allies 32 | . . . . 13 . . . . 1 . 15 . . . . 2 . . . . . 1 . Largest Group 10 | . . . . 10 . . . . 1 . 8 6 . . . 1 . . . . . 1 . Highest-Rated Group 311 | . . . . 173 . . . . 96 . 311 168 . . . 30 . . . . . 58 . Highest-Rated Ally 159 | . . . . 31 . . . . 96 . 159 39 . . . 30 . . . . . 58 . Total Orders . | . . . . . . . . . . . . . . . . . . . . . . . . Ally Attacks 290 | . . . . 135 . . . . 21 . 118 12 . . . 1 . . . . . 3 . Total Damage 5882 | . . . . 1808 . . . . 891 . 2779 271 . . . . . . . . . 133 . Kills 50 | . . . . 22 . . . . 3 . 23 2 . . . . . . . . . . . Allies Corrupted 1 | . . . . . . . . . . . . . . . . 1 . . . . . . . Allies Melted 1 | . . . . 1 . . . . . . . . . . . . . . . . . . . Intel | -11 -10 -9 -8 -8 -7 -7 -7 -7 -6 -6 -6 -6 -6 -5 -5 -4 -4 -4 -4 -3 -3 -2 -1 ------- Run | Yrd Mat Mat Mat Sto Fac Low Low Dat Pro Fac Ext Cet Arc Fac DSF Fac Upp Upp Zhi Pro Res Res Acc Robot Analysis Total 6 | . 1 . . . . . . . . . . . . . . 1 . . 4 . . . . Derelict Logs Recovered 7 | . . . . . . 2 1 . 1 . . . . . . . 1 2 . . . . . Drone Launches 5 | . . . . . . . . . . . . . . . . . . 2 . 3 . . . Drone Recoveries 1 | . . . . . . . . . . . . . . . . . . . . 1 . . . Exploration | -11 -10 -9 -8 -8 -7 -7 -7 -7 -6 -6 -6 -6 -6 -5 -5 -4 -4 -4 -4 -3 -3 -2 -1 ------------- Run | Yrd Mat Mat Mat Sto Fac Low Low Dat Pro Fac Ext Cet Arc Fac DSF Fac Upp Upp Zhi Pro Res Res Acc Turns Passed 15783 | 72 664 1064 842 850 351 531 190 41 700 710 1703 306 580 148 162 697 1374 1253 432 573 815 705 1020 Spaces Moved 12469 | 56 692 512 655 943 392 747 379 96 680 590 1069 201 330 267 97 1215 718 588 261 338 647 401 595 Core 79 | 1 . . 1 . . . . . . . . . . . . 1 . . . . 25 . 51 Treads 2830 | . . 466 239 . . . . . . . . . . . . . 676 588 260 307 135 22 137 Legs 1201 | . . . . . . . . . . . 664 201 209 . . . . . . . . 122 5 Wheels 1775 | 55 76 . . . . . . . 365 590 405 . . . . . . . . . . 200 84 Hover 5147 | . 616 46 415 943 392 747 379 96 315 . . . 121 267 97 174 . . . . 398 . 141 Flight 1437 | . . . . . . . . . . . . . . . . 1040 42 . 1 31 89 57 177 Fastest Speed 19 | 50 56 56 38 38 40 40 43 43 43 101 90 120 105 48 48 28 28 160 160 96 32 35 19 Average Speed 90 | 89 61 151 90 38 40 41 43 43 76 103 115 120 114 52 71 37 153 181 161 155 91 128 98 Slowest Speed 655 | 90 116 320 400 102 100 105 43 43 180 105 190 122 190 103 176 350 260 260 655 172 320 260 310 Overloaded Moves 14 | . . . . . . . . . . . . . . . . . . . . 14 . . . Propulsion Burnouts . | . . . . . . . . . . . . . . . . . . . . . . . . Robots Hopped 30 | . . . . . . . . . . . . . . . . 27 . . . . . . 3 Cave-ins Triggered 1 | . . . . . . . . . . . 1 . . . . . . . . . . . . Exploration Rate (%) 48 | 3 87 53 32 83 11 63 55 75 63 14 76 65 97 6 45 41 82 73 62 39 11 7 9 Regions Visited 23 Branch Regions 12 Pre-discovered Areas 4 | . . . . . . . . 1 . . . . . . . . . . 3 . . . . Known Exits Taken 14 | . 1 1 1 . 1 1 1 1 1 1 . . 1 1 . 1 1 . . . 1 . . Unknown Exits Taken 8 | 1 . . . 1 . . . . . . 1 1 . . . . . 1 1 1 . 1 . Scrap Searched 15 | . . . . . . 5 3 . 1 . . . . . . . 4 2 . . . . . Spaces Dug 6 | . . . . . . 6 . . . . . . . . . . . . . . . . . Terrain Destroyed 218 | . . . 20 9 . 9 21 . . . 14 1 17 . 3 . 13 69 . 8 12 6 16 Melee . | . . . . . . . . . . . . . . . . . . . . . . . . Projectile 141 | . . . . . . 9 1 . . . 4 1 17 . 3 . 13 64 . 8 9 6 6 AOE 77 | . . . 20 9 . . 20 . . . 10 . . . . . . 5 . . 3 . 10 Terrain Rammed . | . . . . . . . . . . . . . . . . . . . . . . . . Walls Destroyed . | . . . . . . . . . . . . . . . . . . . . . . . . Machines Disabled . | . . . . . . . . . . . . . . . . . . . . . . . . Actions | -11 -10 -9 -8 -8 -7 -7 -7 -7 -6 -6 -6 -6 -6 -5 -5 -4 -4 -4 -4 -3 -3 -2 -1 --------- Run | Yrd Mat Mat Mat Sto Fac Low Low Dat Pro Fac Ext Cet Arc Fac DSF Fac Upp Upp Zhi Pro Res Res Acc Total 15312 | 71 816 678 785 1303 523 906 393 95 771 668 1369 241 444 277 163 1382 955 685 269 362 806 511 839 Wait 986 | . 5 39 3 266 84 104 7 . 15 24 75 5 5 . 8 36 173 15 . 7 34 25 56 Move 12390 | 55 691 511 654 942 391 746 378 95 679 589 1068 200 329 266 96 1164 717 587 260 337 646 400 589 Hop 26 | . . . . . . . . . . . . . . . . 23 . . . . . . 3 Pick Up 261 | 7 12 15 18 10 6 5 . . 6 18 36 6 23 1 11 22 11 16 1 3 16 9 9 Fast Attach 205 | 6 5 9 4 3 . 1 . . 8 2 12 1 4 . 4 23 9 4 4 1 27 16 62 Attach 135 | . 3 3 3 4 4 2 . . 6 3 16 1 6 3 10 18 4 12 1 2 12 7 15 Detach 53 | . . 3 2 . . . . . 3 . . . 2 2 6 9 6 4 1 . 8 4 3 Swap 122 | . 13 6 12 5 3 2 3 . 4 6 20 11 6 . 4 6 6 2 1 . 6 3 3 Drop 244 | . 22 13 26 8 4 5 . . 7 11 28 7 24 . 9 23 12 3 1 2 23 9 7 Fire 783 | 3 65 79 63 64 31 40 5 . 43 15 81 10 45 . 14 36 17 42 . 9 34 35 52 Melee 79 | . . . . . . . . . . . 19 . . 5 . 15 . . . . . . 40 Ram 2 | . . . . . . . . . . . 1 . . . 1 . . . . . . . . Kick . | . . . . . . . . . . . . . . . . . . . . . . . . Crush . | . . . . . . . . . . . . . . . . . . . . . . . . Escape Stasis 15 | . . . . . . . . . . . 8 . . . . 7 . . . . . . . Rewire 11 | . . . . 1 . 1 . . . . 5 . . . . . . . . 1 . 3 . Trap . | . . . . . . . . . . . . . . . . . . . . . . . . Miscellaneous . | . . . . . . . . . . . . . . . . . . . . . . . . Route ------- -11/Scrapyard -10/Materials (discovered 4 exits: *Mat x2 / *Min x2) -9/Materials (discovered 3 exits: *Mat x3) -8/Materials (discovered 3 exits: *Fac / *Sto x2) -8/Storage (discovered 3 exits: *Fac / Rec / Gar) -7/Factory (discovered 2 exits: *Fac / *Low) -7/Lower Caves -7/Lower Caves -7/Data Miner -6/Proximity Caves -6/Factory (discovered 2 exits: *Fac / *Ext) -6/Extension (discovered 2 exits: *Fac / *Cet) -6/Cetus -6/Archives (discovered 3 exits: *Fac / [*Hub x2]) -5/Factory -5/DSF -4/Factory (discovered 3 exits: *Res / *Upp x2) -4/Upper Caves -4/Upper Caves -4/Zhirov -3/Proximity Caves -3/Research (discovered 4 exits: *Res x3 / [*Arm]) -2/Research -1/Access History --------- Turn | Location | Event 9 | -11/Scrapyard | Discovered new exit (range 15) 73 | -11/Scrapyard | Entered Materials 168 | -10/Materials | Discovered new exit (range 11) 262 | -10/Materials | Core integrity fell below 50% 316 | -10/Materials | Build established: Mutant 391 | -10/Materials | Discovered new exit (range 3) 480 | -10/Materials | Discovered new exit (range 5) 487 | -10/Materials | Discovered new exit (range 6) 505 | -10/Materials | Core integrity fell below 20% 563 | -10/Materials | Identified exit to Mines 574 | -10/Materials | Identified exit to Materials 737 | -10/Materials | Entered another Materials area 737 | -9/Materials | Evolved 2 slots: Utility x2 1129 | -9/Materials | Discovered new exit (range 6) 1138 | -9/Materials | Identified exit to Materials 1209 | -9/Materials | Build established: Skirmisher 1477 | -9/Materials | Repaired Lgt. Nuclear Core 1529 | -9/Materials | Discovered exit to Materials (range 16) 1796 | -9/Materials | Discovered exit to Materials (range 3) 1801 | -9/Materials | Entered another Materials area 1801 | -8/Materials | Evolved 2 slots: Propulsion x2 2304 | -8/Materials | Discovered new exit (range 11) 2350 | -8/Materials | Identified exit to Storage 2483 | -8/Materials | Discovered new exit (range 8) 2643 | -8/Materials | Entered Storage 2727 | -8/Storage | Build established: Mutant 3021 | -8/Storage | Assisted by bots powering up and referring to "LRC-V3" 3049 | -8/Storage | Identified exit to Recycling 3114 | -8/Storage | Identified exit to Garrison 3198 | -8/Storage | Repaired Aerolev Unit 3334 | -8/Storage | Build established: Commander-Mutant 3367 | -8/Storage | Repaired Aerolev Unit 3412 | -8/Storage | Repaired Lightning Gun 3443 | -8/Storage | First assault squad dispatched 3487 | -8/Storage | Discovered new exit (range 15) 3493 | -8/Storage | Entered Factory 3493 | -7/Factory | Evolved 2 slots: Utility x2 3502 | -7/Factory | Lost 7 allies 3798 | -7/Factory | Build established: Scavenger-Mutant 3804 | -7/Factory | Discovered new exit (range 5) 3804 | -7/Factory | Discovered new exit (range 12) 3808 | -7/Factory | Identified exit to Factory 3839 | -7/Factory | Identified exit to Lower Caves 3844 | -7/Factory | Entered Lower Caves 3953 | -7/Lower Caves | Learned 4 Factory zone layouts 3958 | -7/Lower Caves | Learned Factory machine intel 4153 | -7/Lower Caves | Ambushed by research squad 4194 | -7/Lower Caves | Discovered new exit (range 8) 4197 | -7/Lower Caves | Identified exit to Lower Caves 4375 | -7/Lower Caves | Entered another Lower Caves area 4388 | -7/Lower Caves | Encountered a Warlord checkpoint 4417 | -7/Lower Caves | Learned Factory non-interactive machine intel 4552 | -7/Lower Caves | Discovered new exit (range 9) 4564 | -7/Lower Caves | Identified exit to Data Miner 4565 | -7/Lower Caves | Entered Data Miner 4565 | -7/Data Miner | Discovered new exit (range 6) 4568 | -7/Data Miner | Identified exit to Proximity Caves 4574 | -7/Data Miner | Met Data Miner 4588 | -7/Data Miner | Learned location of Section 7 (-2) 4588 | -7/Data Miner | Acquired the access code to Warlord's prototype stash 4596 | -7/Data Miner | Received God Mode back door access code from Data Miner 4606 | -7/Data Miner | Entered Proximity Caves 4620 | -6/Proximity Caves | Learned Factory emergency access door positions 4732 | -6/Proximity Caves | Entered a huge 0b10 base via the front door 4752 | -6/Proximity Caves | Spotted B-75 Beast 4781 | -6/Proximity Caves | Escorted by Enhanced Grunt 4789 | -6/Proximity Caves | Lost 5 parts (4n1u) 4982 | -6/Proximity Caves | Discovered exit to Factory (range 7) 5063 | -6/Proximity Caves | Lost 3 parts (1p1n1w) 5306 | -6/Proximity Caves | Entered Factory 5306 | -6/Factory | Evolved 2 slots: Utility x1, Weapon x1 5307 | -6/Factory | Identified exit to Extension 5309 | -6/Factory | Loaded intel: 241 machine locations 5310 | -6/Factory | Loaded intel: 187 non-interactive machine locations 5355 | -6/Factory | Discovered new exit (range 12) 5379 | -6/Factory | Identified exit to Factory 5611 | -6/Factory | Build established: Scavenger-Gunner 6016 | -6/Factory | Entered Extension 6064 | -6/Extension | Rescued a captive Derelict 6064 | -6/Extension | Rescued a captive Derelict 6069 | -6/Extension | Rescued a captive Derelict 6070 | -6/Extension | Rescued a captive Derelict 6141 | -6/Extension | Disrupted transfer network 6186 | -6/Extension | Rescued a captive Derelict 6211 | -6/Extension | Rescued A7 6409 | -6/Extension | Spotted B-75 Beast 6419 | -6/Extension | Spotted B-75 Beast 6430 | -6/Extension | Crushed by falling debris 6430 | -6/Extension | System corruption reached 10% 6460 | -6/Extension | Lost 6 allies 6461 | -6/Extension | Lost 5 parts (3n2u) 6610 | -6/Extension | Lost 5 parts (1p3n1w) 6716 | -6/Extension | First assault squad dispatched 6747 | -6/Extension | Lost 7 parts (3n3u1w) 7163 | -6/Extension | Destroyed B-75 Beast 7198 | -6/Extension | Destroyed B-75 Beast 7238 | -6/Extension | Extracted ID and sensor layout for unrecognized location from A7's data core 7388 | -6/Extension | Rescued a captive Derelict 7390 | -6/Extension | Rescued a captive Derelict 7469 | -6/Extension | Rescued a captive Derelict 7470 | -6/Extension | Rescued a captive Derelict 7491 | -6/Extension | Rescued a captive Derelict 7491 | -6/Extension | Rescued a captive Derelict 7538 | -6/Extension | Rescued a captive Derelict 7560 | -6/Extension | Rescued a captive Derelict 7561 | -6/Extension | Rescued a captive Derelict 7598 | -6/Extension | Discovered exit to Factory (range 10) 7599 | -6/Extension | Discovered new exit (range 6) 7719 | -6/Extension | Entered Cetus 7719 | -6/Cetus | Accompanied by 6 allies 7732 | -6/Cetus | Build established: Scavenger-Mutant 7736 | -6/Cetus | Spotted Cetus Guard 7736 | -6/Cetus | Spotted Cetus Guard 7740 | -6/Cetus | Spotted Cetus Guard 7744 | -6/Cetus | Spotted Cetus Guard 7750 | -6/Cetus | Allies destroyed Cetus Guard 7756 | -6/Cetus | Allies destroyed Cetus Guard 7761 | -6/Cetus | Destroyed Cetus Guard 7786 | -6/Cetus | Destroyed Cetus Guard 7790 | -6/Cetus | Lost 6 allies 7973 | -6/Cetus | Discovered new exit (range 16) 7998 | -6/Cetus | Spotted Cetus Guard 7998 | -6/Cetus | Spotted Cetus Guard 8025 | -6/Cetus | Entered Archives 8101 | -6/Archives | Build established: Scavenger-Tank 8192 | -6/Archives | Lost 3 parts (1p1n1u) 8196 | -6/Archives | Discovered exit to Factory (range 14) 8225 | -6/Archives | Unable to access archive contents 8232 | -6/Archives | Discovered new exit (range 16) 8239 | -6/Archives | Unable to access archive contents 8244 | -6/Archives | Discovered new exit (range 15) 8251 | -6/Archives | Unable to access archive contents 8263 | -6/Archives | Unable to access archive contents 8605 | -6/Archives | Entered Factory 8605 | -5/Factory | Evolved 2 slots: Propulsion x1, Utility x1 8665 | -5/Factory | Identified exit to DSF 8753 | -5/Factory | Entered DSF 8780 | -5/DSF | Additional patrols routed to DSF 8818 | -5/DSF | Lost 3 parts (1n2u) 8868 | -5/DSF | Discovered new exit (range 12) 8915 | -5/DSF | Entered Factory 8915 | -4/Factory | Evolved 2 slots: Propulsion x1, Utility x1 9093 | -4/Factory | Build established: Hacker-Mutant 9110 | -4/Factory | Discovered new exit (range 10) 9339 | -4/Factory | Spotted B-86 Titan 9362 | -4/Factory | Identified exit to Upper Caves 9365 | -4/Factory | Fabricated Lgt. Regenerative Plating? 9461 | -4/Factory | Lost 17 parts (4n8u5w) 9612 | -4/Factory | Entered Upper Caves 9896 | -4/Upper Caves | Build established: Hacker-Tank 10127 | -4/Upper Caves | Attracted the attention of an 0b10 checkpoint 10423 | -4/Upper Caves | Build established: Hacker-Gunner 10838 | -4/Upper Caves | Build established: Hauler-Mutant 10851 | -4/Upper Caves | Identified exit to Upper Caves 10986 | -4/Upper Caves | Entered another Upper Caves area 11249 | -4/Upper Caves | Attacked by a delusional Derelict stockpiling parts 11328 | -4/Upper Caves | Learned Research garrison access intel 11368 | -4/Upper Caves | Attracted the attention of an 0b10 outpost 11382 | -4/Upper Caves | Core integrity fell below 50% 11433 | -4/Upper Caves | Destroyed 7 combat bots 11541 | -4/Upper Caves | Lost 3 parts (2n1w) 11768 | -4/Upper Caves | Build established: Hauler-Gunner 11915 | -4/Upper Caves | Lost 3 parts (1n1u1w) 12180 | -4/Upper Caves | Discovered new exit (range 13) 12185 | -4/Upper Caves | Build established: Derelict-Gunner 12223 | -4/Upper Caves | Learned 4 Research zone layouts 12239 | -4/Upper Caves | Entered Zhirov 12239 | -4/Zhirov | Discovered new exit (range 3) 12268 | -4/Zhirov | Met Zhirov 12327 | -4/Zhirov | Learned location of Quarantine (-2) 12327 | -4/Zhirov | Learned location of Testing (-3) 12327 | -4/Zhirov | Learned location of Command (-1) 12359 | -4/Zhirov | Zhirov requested help retrieving the SGEMP Prototype 12671 | -4/Zhirov | Entered Proximity Caves 12819 | -3/Proximity Caves | Build established: Scavenger-Gunner 12939 | -3/Proximity Caves | Discovered new exit (range 10) 13244 | -3/Proximity Caves | Entered Research 13244 | -3/Research | Evolved 2 slots: Power x1, Utility x1 13245 | -3/Research | Identified exit to Research 13246 | -3/Research | Loaded intel: 4 garrison access locations 13264 | -3/Research | Lost 10 parts (2p4n2u2w) 13622 | -3/Research | Discovered new exit (range 15) 13740 | -3/Research | Build established: Hacker-Gunner 13960 | -3/Research | Garrison activated, responded to threat 13991 | -3/Research | System corruption reached 10% 14059 | -3/Research | Entered another Research area 14059 | -2/Research | Evolved 2 slots: Utility x2 14089 | -2/Research | Lost 20 parts (2p9n5u4w) 14435 | -2/Research | Build established: Scavenger-Gunner 14500 | -2/Research | Spotted B-90 Cyclops 14710 | -2/Research | System corruption reached 10% 14746 | -2/Research | Discovered new exit (range 7) 14764 | -2/Research | Entered Access 14764 | -1/Access | Evolved 2 slots: Propulsion x1, Weapon x1 15177 | -1/Access | Found Exp. Thermal Shield 15186 | -1/Access | Lost 13 parts (3p4n2u4w) 15208 | -1/Access | Found Nanosword 15417 | -1/Access | System corruption reached 10% 15440 | -1/Access | Core integrity fell below 50% 15456 | -1/Access | Lost 33 parts (4p13n9u7w) 15703 | -1/Access | Lost 12 parts (1p5n3u3w) 15705 | -1/Access | Core integrity fell below 20% 15760 | -1/Access | Lost 3 parts (1p1u1w) 15784 | -1/Access | Destroyed by P-80 Master with Gamma Rifle Last Messages --------------- 15751_ 0IBWAK&MPLR>WKZORUSNBL4UEMWXIEJFMPG 15752_ Acquired Com. Wheel. 15761_ Acquired Lgt. Quantum Reactor. 15764_ ALERT: Rogue bot located, Programmers report to Access Zone 7Z. 15764_ Acquired Imp. Antigrav System. 15770_ Acquired 142 matter. 15772_ Acquired Cmb. Linear Gravjet. 15773_ System corrupted: Heat flow error (+173). 15775_ Acquired 8 matter. 15776_ P-80 Master Imp. Antigrav System severed. 15776_ Core Analyzer destroyed. 15778_ Destroyed Adv. Heat Sink. 15780_ P-80 Master Imp. Antigrav System severed. 15783_ Com. Wheel destroyed. 15783_ P-80 Master destroyed. 15784_ Biometal Leg destroyed. [Achievement: 20k Club] [Achievement: This Is Interesting...] [Achievement: Just Browsing] [Achievement: Achiever] Map ----- +----------------------------------------------------+ | ????????????????????????????????????????????? | | ????????????????????????????????????????????? | | ????????????????????????????????????????????? | | ????????????????????????????????????????????? | | ????????????????????????????????????????????? | | ????????????????????????????????????????????? | | ????????????????????????????????????????????? | | ??????????????????????????????????????????????### | | ?????????????????????????????????????????????????? | | ???????????????????????????"""" #????????????????? | | ??????????????????? ??????"""""#????????????????? | | ??????????????????? ???#""F ""#?????????????? | | ?????????????????? ####""" ######???????????? | | ??????????????????? #???????????? | | ???????????????????? ###?????????? | | ????????????????????? ! ??????????? | | ?????????????????????? #???????????? | | ????????????????????????# #???????????? | | ????????????????????????# #???########+ | | ????????????????????????# #???# | | ??????????????????####### ##### | | ??????????????????+ % / | | ??????????????????????### ###[ ###### """" | | ????????????????????????# #?##+##????# """" | | ???????????????????########+###? ????# """" | | ???????????????????# = !!@%!%## ??# * """" | | ???????????????????# ==!=p*## #?# """" | | ???????????????????# =|*%!p|## #?# | | ???????????????????# ! ## #?# | | ???????????????????# ## #?# | | ???????????????????#!!! ## #?# | | ???????????????????#!!! ## #?######### | | ???????????????????#!! ## #?????????? | | ???????????????????#####################?????????? | | ?????????????????????????????????????????????????? | | ?????????????????????????????????????????????????? | | ?????????????????????????????????????????????????? | | ?????????????????????????????????????????????????? | | ?????????????????????????????????????????????????? | | ?????????????????????????????????????????????????? | | ?????????????????????????????????????????????????? | | ?????????????????????????????????????????????????? | | ?????????????????????????????????????????????????? | | ?????????????????????????????????????????????????? | | ?????????????????????????????????????????????????? | | ?????????????????????????????????????????????????? | | ?????????????????????????????????????????????????? | | ?????????????????????????????????????????????????? | | ?????????????????????????????????????????????????? | | ?????????????????????????????????????????????????? | +----------------------------------------------------+ Best States ------------- Heat Dissipation 75 Energy Generation 45 Energy Capacity 580 Matter Stores 398 Matter Capacity 550 Sight Range 16 Robot Scan Range 15 Terrain Scan Range 14 Terrain Scan Density 210 ECM Strength 2 Additional Mass Support 12 Corruption Containment 8 Armor Coverage 1200 Resistance: TH 30 Point Defense Rating 160 Weapon Cycling 15 Evasion (%) 78 Targeting Accuracy 32 Melee Accuracy 12 Target Analysis 12 Core Analysis 6 Armor Integrity Analysis 40 Recoil Reduction 6 Particle Charging 15 Offensive Hacking 36 Defensive Hacking 46 Item Schematics ----------------- Combat Drone Bay | -7/Data Miner | Free Lgt. Regenerative Plating | -7/Data Miner | Free Biomechanical Wings | -7/Data Miner | Free Gravity Neutralizer | -7/Data Miner | Free Com. Ion Cannon | -7/Data Miner | Free Cmb. Gravmag System | -7/Data Miner | Free Imp. Thermal Shield | -7/Data Miner | Free Lrn. Proton Cannon | -7/Data Miner | Free Adv. System Shield | -7/Data Miner | Free Adv. Particle Charger | -7/Data Miner | Free Field Propulsion Array | -4/Factory | Scanalyzed Neutrino Core | -4/Factory | Scanalyzed Assault Drone Bay | -4/Zhirov | Free Exp. Heat Sink | -4/Zhirov | Free Exp. Optical Array | -4/Zhirov | Free Imp. Arc Thrower | -4/Zhirov | Free Robot Schematics ------------------ B-48 Gladiator | -7/Data Miner | Free W-25 Informer | -7/Data Miner | Free A-15 Conveyor | -7/Data Miner | Free E-15 Imp | -7/Data Miner | Free L-41 Fighter | -7/Data Miner | Free Fabricated ------------ Lgt. Regenerative Plating | x1 | -4/Factory Alien Tech Used ----------------- None Achievements -------------- 20k Club A New Friend Achiever Adventurer Armchair Analyst Cya! Dangerous Findings Deadly Force Denied? Dodgeball, But With Guns Explorer Just Browsing Knowing Is Half The Battle Maximum Efficiency Party Time Respectable Loadout Tank The Oracle The Science Guy This Is Interesting... Troublemaker Unlikely Earthworm Challenges ------------ None Game ------ Seed ShockPhysicsStripper Manual? 0 Play Time 04:04:04 Cumulative 14.9 hours Start 2024.05.23 @ 12:13:38 End 2024.05.24 @ 00:06:21 Sessions 3 Manual Loads 0 Difficulty Rogue Special Mode None Game No. 11 Rogue 11 Adventurer 0 Explorer 0 Win Type - Total 0 Types 0/0/0/0/0/0/0/0/0 Lore% 26 Gallery% 27 Achievement% 25 Wizard Run 0 Options --------- Layout 0 ASCII 0 Keyboard 1 Movement Numpad Keybinds 0 Fullscreen 2 Font 18/SmallcapsGlow Map View 76x50 Zoom Use 0% Tactical HUD 1 Map Filters NONE Filters NONE Steam 1 RUN: fc002375-72ea-4656-bc4e-a4192a25f1a9